bitfinex/quotes_BTCUSD_20230114
["timestamp","ask_amount","ask_price","bid_price","bid_amount"]
[1673709310604,0.231556,20802.0,20798.0,0.139]
[1673709310856,0.67238632,20803.0,20798.0,0.139]
[1673709311106,0.231556,20802.0,20798.0,0.139]
[1673709311355,0.14420401,20803.0,20798.0,0.480813]
[1673709311612,0.001,20799.0,20798.0,0.480813]
[1673709311875,0.54979842,20803.0,20798.0,0.480813]
[1673709312133,0.54979842,20803.0,20798.0,0.566813]
[1673709312371,0.231556,20802.0,20798.0,0.566813]
[1673709312628,0.54979842,20803.0,20798.0,0.566813]
[1673709312881,0.231556,20802.0,20798.0,0.566813]
[1673709313141,0.19072595,20802.0,20798.0,0.566813]
[1673709313400,0.231556,20801.0,20798.0,0.566813]
[1673709313629,0.14324564,20802.0,20798.0,0.566813]
[1673709313884,0.231556,20801.0,20798.0,0.961628]
[1673709314142,0.33397159,20802.0,20798.0,0.961628]
[1673709314507,0.37480164,20801.0,20797.0,0.480836]
[1673709314931,0.37480164,20801.0,20798.0,0.141]
[1673709314932,0.231556,20800.0,20798.0,0.141]
[1673709315184,0.14324564,20799.0,20798.0,0.141]
[1673709315447,1.5512541,20799.0,20798.0,0.141]
[1673709315719,1.5512541,20799.0,20794.0,0.00163915]
[1673709315720,2.42252568,20799.0,20794.0,0.00163915]
[1673709315988,0.14344573,20797.0,20794.0,0.00163915]
[1673709316242,0.712417,20796.0,20794.0,0.00163915]
[1673709316494,0.480861,20796.0,20794.0,0.00163915]
[1673709316801,0.231556,20795.0,20794.0,0.00163915]
[1673709317064,0.231556,20795.0,20794.0,0.14063915]
[1673709317820,0.231556,20795.0,20794.0,0.00163915]
[1673709318079,1.73943935,20799.0,20794.0,0.96345315]
[1673709318080,1.39551277,20799.0,20794.0,0.96345315]
[1673709318330,0.001,20796.0,20794.0,1.10245315]
[1673709318616,1.12581258,20801.0,20795.0,0.77720169]
[1673709318617,0.14350341,20801.0,20795.0,0.77720169]
[1673709318854,0.35857231,20803.0,20800.0,0.1287]
[1673709318855,0.14350341,20803.0,20800.0,0.1287]
[1673709319117,0.00769803,20805.0,20800.0,0.3]
[1673709319371,0.00769803,20805.0,20801.0,1.67010892]
[1673709319372,0.3663698,20805.0,20801.0,1.67010892]
[1673709319657,0.00866473,20805.0,20801.0,1.5457672]
[1673709319887,0.00866473,20805.0,20802.0,0.300981]
[1673709320119,0.00866473,20805.0,20803.0,0.480699]
[1673709320630,0.00769803,20805.0,20803.0,0.480699]
[1673709320944,0.00769803,20805.0,20804.0,0.300949]
[1673709321149,0.00769803,20805.0,20804.0,1.262301]
[1673709322126,0.00769803,20805.0,20804.0,0.961352]
[1673709322381,0.00769803,20805.0,20804.0,1.102352]
[1673709322629,0.00769803,20805.0,20804.0,1.403299]
[1673709323914,0.00769803,20805.0,20804.0,0.922623]
[1673709324161,0.00769803,20805.0,20804.0,0.141]
[1673709324687,0.00769803,20805.0,20804.0,0.621676]
[1673709325451,0.00769803,20805.0,20804.0,0.922623]
[1673709325964,0.00769803,20805.0,20804.0,1.222623]
[1673709326487,0.00769803,20805.0,20804.0,1.703299]
[1673709327299,0.00769803,20805.0,20804.0,1.803299]
[1673709327512,0.00769803,20805.0,20804.0,2.33883316]
[1673709328253,0.00769803,20805.0,20804.0,1.703299]
[1673709329000,8.03e-06,20805.0,20804.0,2.84553485]
[1673709329526,8.03e-06,20805.0,20804.0,3.14724641]
[1673709330047,0.19073398,20805.0,20804.0,1.53897431]
[1673709330304,0.19073398,20805.0,20804.0,0.71662231]
[1673709330567,8.03e-06,20805.0,20803.0,0.961366]
[1673709330818,8.03e-06,20805.0,20804.0,0.138]
[1673709331098,8.03e-06,20805.0,20803.0,0.961366]
[1673709331357,8.03e-06,20805.0,20804.0,0.139]
[1673709331594,8.03e-06,20805.0,20803.0,0.961366]
[1673709331858,8.03e-06,20805.0,20803.0,1.100366]
[1673709332127,8.03e-06,20805.0,20803.0,0.961366]
[1673709333152,8.03e-06,20805.0,20803.0,1.100366]
[1673709333412,0.01429598,20804.0,20803.0,1.100366]
[1673709333697,0.01429598,20804.0,20803.0,1.701329]
[1673709334165,0.01429598,20804.0,20803.0,2.27853069]
[1673709334415,0.01429598,20804.0,20803.0,2.67370021]
[1673709334677,0.01429598,20804.0,20803.0,2.13953069]
[1673709334973,5.98e-06,20804.0,20803.0,2.67506485]
[1673709335191,8.03e-06,20805.0,20804.0,0.1]
[1673709335455,0.00739067,20806.0,20804.0,2.50278785]
[1673709335456,8.7e-06,20806.0,20804.0,2.50278785]
[1673709335705,8.7e-06,20806.0,20805.0,1.68012785]
[1673709335956,8.7e-06,20806.0,20805.0,2.94143385]
[1673709336972,8.7e-06,20806.0,20805.0,2.23494699]
[1673709337229,8.7e-06,20806.0,20805.0,1.73949969]
[1673709337512,8.7e-06,20806.0,20805.0,2.39842199]
[1673709337743,8.7e-06,20806.0,20805.0,1.87749969]
[1673709338494,8.7e-06,20806.0,20805.0,2.00699969]
[1673709338762,8.7e-06,20806.0,20805.0,2.30699969]
[1673709339023,8.7e-06,20806.0,20805.0,2.84253385]
[1673709339259,8.7e-06,20806.0,20805.0,2.30699969]
[1673709339527,8.7e-06,20806.0,20805.0,1.829798]
[1673709340282,8.7e-06,20806.0,20805.0,2.17749969]
[1673709340561,8.7e-06,20806.0,20805.0,2.72153385]
[1673709341582,5.6e-07,20807.0,20806.0,0.1]
[1673709341827,0.00916162,20811.0,20806.0,2.38249585]
[1673709342098,0.00916162,20811.0,20807.0,1.29630916]
[1673709342346,0.00916162,20811.0,20808.0,2.21895369]
[1673709342614,0.00916162,20811.0,20809.0,0.77806469]
[1673709342868,0.00916162,20811.0,20809.0,2.13918669]
[1673709343106,0.00916162,20811.0,20809.0,3.07772618]
[1673709343631,0.00916162,20811.0,20809.0,2.66010899]
[1673709344174,0.00916162,20811.0,20809.0,2.79910899]
[1673709344408,0.00916162,20811.0,20809.0,2.11633368]
[1673709345230,0.00916162,20811.0,20809.0,1.87818669]
[1673709345439,0.00916162,20811.0,20809.0,2.73350231]
[1673709345686,6.2e-07,20811.0,20810.0,1.29527324]
[1673709345945,0.00835182,20813.0,20811.0,0.1]
[1673709346195,0.00835182,20813.0,20811.0,1.95455489]
[1673709346518,0.00835182,20813.0,20811.0,2.55538089]
[1673709346725,0.00835182,20813.0,20811.0,2.27442968]
[1673709346982,0.00835182,20813.0,20811.0,1.261856]
[1673709347229,0.00835182,20813.0,20811.0,1.400856]
[1673709348004,0.00835182,20813.0,20811.0,0.619515]
[1673709348254,0.00835182,20813.0,20811.0,0.139]
[1673709349761,0.00835182,20813.0,20811.0,1.10003]
[1673709350016,0.00835182,20813.0,20811.0,1.400856]
[1673709350310,0.00835182,20813.0,20811.0,1.500856]
[1673709350542,0.00835182,20813.0,20811.0,1.800856]
[1673709352033,0.00835182,20813.0,20811.0,1.700856]
[1673709352288,0.00835182,20813.0,20811.0,1.400856]
[1673709355830,0.00835182,20813.0,20811.0,1.800856]
[1673709356070,0.00835182,20813.0,20811.0,2.27805769]
[1673709356854,0.00835182,20813.0,20811.0,2.17805769]
[1673709357357,0.00835182,20813.0,20811.0,1.400856]
[1673709358649,0.00835182,20813.0,20811.0,1.10003]
[1673709358898,0.00835182,20813.0,20811.0,0.139]
[1673709359662,0.48344249,20812.0,20811.0,0.139]
[1673709359917,1.29549049,20812.0,20811.0,0.139]
[1673709360169,1.19549049,20812.0,20811.0,0.139]
[1673709360472,1.3389939,20812.0,20811.0,0.139]
[1673709360916,1.3389939,20812.0,20806.0,0.480611]
[1673709360917,0.09788322,20810.0,20806.0,0.480611]
[1673709361165,0.19072595,20809.0,20805.0,0.480692]
[1673709361412,0.42228195,20808.0,20805.0,0.480692]
[1673709361684,0.19072595,20808.0,20805.0,0.480692]
[1673709362176,1.33678322,20810.0,20805.0,0.480692]
[1673709362432,0.011,20809.0,20806.0,0.300911]
[1673709362692,0.09788322,20810.0,20807.0,1.742701]
[1673709362956,0.09788322,20810.0,20808.0,0.1]
[1673709363217,0.09788322,20810.0,20809.0,0.781424]
[1673709363501,0.10988322,20810.0,20809.0,0.480561]
[1673709363752,0.09788322,20810.0,20809.0,0.961122]
[1673709364281,0.09788322,20810.0,20809.0,1.261984]
[1673709364548,0.09788322,20810.0,20809.0,0.961122]
[1673709364796,0.09788322,20810.0,20809.0,0.960297]
[1673709365633,0.10988322,20810.0,20809.0,0.540736]
[1673709366647,0.10988322,20810.0,20809.0,1.021297]
[1673709366918,0.10988322,20810.0,20809.0,1.322158]
[1673709367191,0.10988322,20810.0,20809.0,1.021297]
[1673709367964,0.10988322,20810.0,20809.0,1.622158]
[1673709368246,0.10988322,20810.0,20809.0,2.09935969]
[1673709368748,0.10988322,20810.0,20809.0,2.63352526]
[1673709369000,0.10988322,20810.0,20809.0,2.09935969]
[1673709369257,0.10988322,20810.0,20809.0,1.322158]
[1673709369831,0.10988322,20810.0,20809.0,2.33300876]
[1673709370088,0.09488322,20810.0,20809.0,2.72972466]
[1673709370355,0.09488322,20810.0,20809.0,2.69058965]
[1673709370622,0.09488322,20810.0,20809.0,2.77596245]
[1673709371167,0.08288322,20810.0,20809.0,3.12612942]
[1673709371416,0.08388322,20810.0,20809.0,3.06751098]
[1673709371678,0.00295049,20812.0,20810.0,0.1]
[1673709371934,0.00295049,20812.0,20811.0,1.91874669]
[1673709372212,0.00295049,20812.0,20811.0,2.51957369]
[1673709372460,0.00295049,20812.0,20811.0,2.61957369]
[1673709372705,0.00295049,20812.0,20811.0,2.51957369]
[1673709373735,0.00395049,20812.0,20811.0,2.65757369]
[1673709374230,0.00395049,20812.0,20811.0,2.180372]
[1673709375502,0.00395049,20812.0,20811.0,2.80117146]
[1673709375764,0.00395049,20812.0,20811.0,3.05808979]
[1673709376078,0.19467644,20812.0,20811.0,1.399857]
[1673709376275,0.00395049,20812.0,20811.0,1.399857]
[1673709376525,0.00395049,20812.0,20811.0,2.02070751]
[1673709377635,0.00395049,20812.0,20811.0,2.32070751]
[1673709378986,0.00395049,20812.0,20811.0,1.399857]
[1673709380783,0.00395049,20812.0,20811.0,1.699857]
[1673709381048,0.00395049,20812.0,20811.0,2.32070751]
[1673709381336,0.00395049,20812.0,20811.0,2.87017331]
[1673709381570,0.00395049,20812.0,20811.0,2.97017331]
[1673709382065,0.00395049,20812.0,20811.0,2.87017331]
[1673709382309,0.00395049,20812.0,20811.0,2.7277786]
[1673709382571,0.00395049,20812.0,20811.0,2.32072869]
[1673709382830,0.00395049,20812.0,20811.0,3.01218073]
[1673709382831,0.00268539,20812.0,20811.0,3.01218073]
[1673709383078,0.00814715,20819.0,20811.0,2.58281206]
[1673709383317,0.00909931,20819.0,20815.0,0.35911475]
[1673709383578,0.00909931,20819.0,20816.0,3.09952469]
[1673709383875,0.00909931,20819.0,20817.0,0.47720169]
[1673709383876,0.00814715,20819.0,20817.0,0.47720169]
[1673709384091,0.00814715,20819.0,20818.0,2.51896769]
[1673709384343,0.00814715,20819.0,20818.0,2.5195679]
[1673709385420,0.00814715,20819.0,20818.0,2.04236621]
[1673709385640,0.00814715,20819.0,20818.0,2.6575679]
[1673709385897,0.00814715,20819.0,20818.0,3.20811446]
[1673709386184,0.00914528,20823.0,20818.0,3.20811446]
[1673709386185,0.00814715,20823.0,20819.0,0.1]
[1673709386477,0.00814715,20823.0,20820.0,2.33937816]
[1673709386727,0.00814715,20823.0,20821.0,1.17845581]
[1673709386983,0.00814715,20823.0,20822.0,1.91798469]
[1673709387230,0.00814715,20823.0,20822.0,2.51862169]
[1673709387993,0.00814715,20823.0,20822.0,2.65762169]
[1673709388503,0.00814715,20823.0,20822.0,2.65554815]
[1673709388768,0.0001,20830.0,20823.0,0.1]
[1673709389032,0.00096066,20829.0,20825.0,1.920756]
[1673709389292,0.0001,20830.0,20826.0,1.07746061]
[1673709389524,0.0001,20830.0,20827.0,1.540424]
[1673709389785,0.0001,20830.0,20828.0,0.77773469]
[1673709390035,0.0001,20830.0,20829.0,1.43739969]
[1673709390294,0.0001,20830.0,20829.0,1.73791569]
[1673709390803,0.0001,20830.0,20829.0,2.03791569]
[1673709391059,2.85517177,20837.0,20829.0,1.73791569]
[1673709391060,2.63510341,20837.0,20829.0,1.73791569]
[1673709391313,2.68232595,20837.0,20830.0,0.47720169]
[1673709391660,0.19072595,20836.0,20831.0,0.480039]
[1673709391810,0.19072595,20836.0,20829.0,0.480099]
[1673709391811,0.6,20835.0,20829.0,0.139]
[1673709392064,0.19072595,20834.0,20829.0,0.139]
[1673709392321,1.191591,20833.0,20829.0,0.139]
[1673709392586,0.19072595,20833.0,20829.0,0.139]
[1673709392868,1.079973,20835.0,20829.0,0.480096]
[1673709392869,0.231556,20832.0,20829.0,0.480096]
[1673709393121,0.19072595,20835.0,20830.0,0.139]
[1673709393373,2.98181594,20837.0,20831.0,0.480047]
[1673709393630,0.001,20833.0,20831.0,0.9601]
[1673709393883,1.96261594,20837.0,20831.0,0.9601]
[1673709393884,2.15334189,20837.0,20831.0,0.9601]
[1673709394164,0.001,20832.0,20831.0,0.9601]
[1673709394416,0.001,20832.0,20821.0,0.784]
[1673709394417,0.19072595,20832.0,20820.0,0.11887015]
[1673709394660,0.96006,20832.0,20831.0,0.14]
[1673709394924,0.2029863,20830.0,20824.0,0.480212]
[1673709395173,0.2029863,20830.0,20822.0,0.480253]
[1673709395174,0.960213,20829.0,20822.0,0.480253]
[1673709395446,0.1293,20827.0,20821.0,0.480268]
[1673709395714,0.19072595,20826.0,20820.0,0.480304]
[1673709395954,0.42228195,20825.0,20820.0,0.045]
[1673709396219,0.19072595,20824.0,20820.0,0.045]
[1673709396472,0.42228195,20823.0,20822.0,0.045]
[1673709396827,0.231556,20823.0,20822.0,0.045]
[1673709397074,0.1,20822.0,20820.0,0.045]
[1673709397318,0.609593,20821.0,20814.0,0.480431]
[1673709397572,0.19072595,20820.0,20812.0,0.58462454]
[1673709397835,0.31952595,20819.0,20812.0,0.48194454]
[1673709398116,0.19072595,20818.0,20812.0,0.00146754]
[1673709398405,0.19072595,20817.0,20812.0,0.00146754]
[1673709398666,0.19072595,20816.0,20812.0,0.00146754]
[1673709399179,0.609164,20818.0,20812.0,0.00146754]
[1673709399180,0.19072595,20815.0,20812.0,0.00146754]
[1673709399974,0.1287,20816.0,20812.0,0.00146754]
[1673709400220,0.81683295,20816.0,20812.0,0.00146754]
[1673709400475,0.32792595,20815.0,20812.0,0.00146754]
[1673709400749,0.96089,20814.0,20812.0,0.00146754]
[1673709401017,0.0085,20813.0,20812.0,0.00146754]
[1673709401280,0.67969395,20813.0,20812.0,0.00146754]
[1673709401538,0.1293,20813.0,20804.0,0.01135914]
[1673709401808,0.19072595,20812.0,20807.0,0.480603]
[1673709402085,0.609545,20814.0,20806.0,0.480629]
[1673709402086,0.19072595,20811.0,20806.0,0.480629]
[1673709402356,0.480474,20813.0,20806.0,0.480629]
[1673709402357,0.19072595,20810.0,20806.0,0.480629]
[1673709402881,0.19072595,20809.0,20804.0,0.49202814]
[1673709403129,0.19072595,20808.0,20804.0,0.49203114]
[1673709403376,0.480523,20811.0,20804.0,0.01135914]
[1673709403377,0.19072595,20807.0,20804.0,0.01135914]
[1673709404395,0.19072595,20806.0,20804.0,0.01135914]
[1673709404923,0.480653,20805.0,20804.0,0.01135914]
[1673709405161,0.480653,20805.0,20804.0,5.914e-05]
[1673709405162,0.745553,20805.0,20804.0,5.914e-05]
[1673709405416,0.1,20804.0,20798.0,0.01135913]
[1673709405667,1.64136395,20803.0,20798.0,0.01135913]
[1673709405935,0.19072595,20802.0,20798.0,0.01135913]
[1673709406192,0.1287,20799.0,20798.0,0.01135913]
[1673709406433,1.28100995,20799.0,20798.0,0.01135913]
[1673709406681,1.16080995,20799.0,20798.0,0.01135913]
[1673709406930,0.970084,20799.0,20798.0,0.01135913]
[1673709407448,0.48075,20801.0,20798.0,0.01135913]
[1673709407958,1.676745,20802.0,20798.0,0.01135913]
[1673709408234,0.1,20801.0,20798.0,0.01135913]
[1673709408509,0.133,20801.0,20798.0,0.01135913]
[1673709408798,1.196,20802.0,20798.0,0.01135913]
[1673709409049,1.331,20802.0,20798.0,0.01135913]
[1673709410330,0.133,20801.0,20798.0,0.01135913]
[1673709410841,0.133,20801.0,20798.0,0.49217013]
[1673709411137,1.2668,20804.0,20799.0,0.1]
[1673709411352,0.135,20801.0,20800.0,0.801116]
[1673709411592,0.135,20801.0,20800.0,1.281873]
[1673709412098,0.135,20801.0,20799.0,1.05797569]
[1673709412099,0.19072595,20801.0,20798.0,0.01135913]
[1673709412396,0.19072595,20800.0,20798.0,0.01135913]
[1673709412861,0.480746,20801.0,20798.0,0.01135913]
[1673709413112,0.624546,20801.0,20798.0,0.01135913]
[1673709413361,0.609546,20801.0,20798.0,0.01135913]
[1673709413621,0.014,20800.0,20798.0,0.01135913]
[1673709413875,0.480679,20804.0,20798.0,0.49217313]
[1673709414112,0.062,20801.0,20798.0,0.49217313]
[1673709414370,0.480679,20804.0,20798.0,0.49217313]
[1673709414371,0.67140495,20804.0,20798.0,0.49217313]
[1673709414625,0.062,20800.0,20798.0,0.49217313]
[1673709414920,0.67140495,20804.0,20798.0,0.49217313]
[1673709415382,0.062,20801.0,20798.0,0.49217313]
[1673709415885,0.25272595,20801.0,20798.0,0.49217313]
[1673709416178,0.062,20801.0,20798.0,0.49217313]
[1673709416409,0.961375,20804.0,20798.0,0.49217313]
[1673709416643,0.062,20800.0,20798.0,0.49217313]
[1673709416892,0.67142295,20804.0,20798.0,0.49217313]
[1673709417191,0.67142295,20804.0,20798.0,0.01135913]
[1673709417192,0.1913,20801.0,20798.0,0.01135913]
[1673709417626,1.16076395,20800.0,20798.0,0.01135913]
[1673709417629,0.970038,20800.0,20798.0,0.01135913]
[1673709418495,1.724269,20800.0,20798.0,0.01135913]
[1673709418714,1.2435,20800.0,20798.0,0.01135913]
[1673709418935,1.2435,20800.0,20798.0,0.00635913]
[1673709419461,1.2435,20800.0,20798.0,0.01035913]
[1673709419714,1.2435,20800.0,20798.0,0.00635913]
[1673709419960,1.749277,20800.0,20798.0,0.01035913]
[1673709420468,0.025,20800.0,20798.0,0.01035913]
[1673709420719,0.025,20800.0,20798.0,0.49117213]
[1673709421213,0.025,20800.0,20799.0,1.09756069]
[1673709421502,0.025,20800.0,20799.0,1.57835269]
[1673709422232,0.025,20800.0,20799.0,1.67835269]
[1673709422540,1.199,20809.0,20800.0,0.1]
[1673709422736,1.199,20809.0,20802.0,1.442118]
[1673709422992,1.199,20809.0,20803.0,1.09748469]
[1673709423242,1.199,20809.0,20802.0,1.96058834]
[1673709423243,1.199,20809.0,20804.0,0.961331]
[1673709423804,1.21,20809.0,20804.0,0.961331]
[1673709424284,1.199,20809.0,20804.0,0.961331]
[1673709424804,1.199,20809.0,20805.0,0.3]
[1673709425062,1.211,20809.0,20806.0,1.281609]
[1673709425328,1.211,20809.0,20807.0,0.512319]
[1673709425329,0.012,20809.0,20807.0,0.512319]
[1673709425580,0.012,20809.0,20808.0,1.27811169]
[1673709425841,0.00916737,20812.0,20808.0,1.27811169]
[1673709425842,0.00916737,20812.0,20809.0,0.1]
[1673709426099,0.00916737,20812.0,20810.0,1.173363]
[1673709426354,0.00916737,20812.0,20811.0,0.320273]
[1673709426610,0.00916737,20812.0,20808.0,0.961165]
[1673709426856,0.19072595,20811.0,20808.0,0.141]
[1673709427101,0.19072595,20811.0,20803.0,0.1]
[1673709427102,0.25526738,20807.0,20801.0,0.48073]
[1673709427371,0.19072595,20806.0,20801.0,0.48073]
[1673709427656,0.19072595,20805.0,20800.0,0.480759]
[1673709427943,0.19072595,20804.0,20800.0,0.480759]
[1673709428168,0.19072595,20803.0,20799.0,0.480779]
[1673709428424,0.19072595,20802.0,20800.0,0.00060074]
[1673709428677,0.19072595,20801.0,20798.0,0.00635913]
[1673709428940,0.19072595,20800.0,20798.0,0.00635913]
[1673709429447,0.99917434,20803.0,20798.0,0.00635913]
[1673709429706,0.004,20802.0,20800.0,0.136]
[1673709429965,0.67142995,20803.0,20798.0,0.00635913]
[1673709429966,0.480704,20803.0,20798.0,0.00635913]
[1673709430277,0.004,20800.0,20798.0,0.14235913]
[1673709430494,0.004,20800.0,20798.0,0.11635913]
[1673709430743,1.18990029,20803.0,20798.0,0.00635913]
[1673709430992,0.48068,20804.0,20798.0,0.00635913]
[1673709431243,0.001,20803.0,20798.0,0.52417113]
[1673709431507,0.19172595,20803.0,20798.0,0.52417113]
[1673709432028,0.19072595,20803.0,20798.0,0.48717113]
[1673709432271,0.001,20800.0,20798.0,0.52417113]
[1673709432534,0.001,20800.0,20798.0,0.00635913]
[1673709432535,0.19072595,20800.0,20798.0,0.00635913]
[1673709432828,0.19072595,20800.0,20798.0,0.04335913]
[1673709433084,0.480724,20802.0,20798.0,0.04335913]
[1673709433338,0.80094995,20802.0,20798.0,0.04335913]
[1673709433591,0.80094995,20802.0,20798.0,0.00635913]
[1673709433849,0.001,20800.0,20798.0,0.04335913]
[1673709434096,0.961584,20799.0,20798.0,0.00635913]
[1673709434360,0.1,20800.0,20798.0,0.00635913]
[1673709434361,1.72227,20800.0,20798.0,0.00635913]
[1673709434616,0.480702,20803.0,20798.0,0.00635913]
[1673709435125,0.001,20802.0,20798.0,0.04335913]
[1673709435393,0.480702,20803.0,20798.0,0.00635913]
[1673709435658,0.05,20800.0,20798.0,0.01735913]
[1673709435935,0.67142795,20803.0,20798.0,0.00635913]
[1673709436183,0.001,20803.0,20798.0,1.48217682]
[1673709436446,0.001,20803.0,20798.0,1.78217682]
[1673709436741,0.001,20803.0,20798.0,1.00497513]
[1673709436742,0.19172595,20803.0,20798.0,1.00497513]
[1673709437261,0.001,20803.0,20798.0,1.48217682]
[1673709437518,0.19172595,20803.0,20799.0,0.1]
[1673709437779,0.19172595,20803.0,20800.0,0.961528]
[1673709437780,0.001,20803.0,20800.0,0.961528]
[1673709438607,2.48874754,20807.0,20800.0,0.961528]
[1673709438869,0.031,20803.0,20800.0,0.961528]
[1673709439113,2.8229769,20807.0,20800.0,0.961528]
[1673709439114,0.480631,20806.0,20800.0,0.961528]
[1673709439381,0.051,20803.0,20800.0,0.968528]
[1673709439895,0.051,20803.0,20801.0,0.1]
[1673709440151,0.051,20803.0,20802.0,0.480723]
[1673709440418,0.051,20803.0,20802.0,1.581805]
[1673709440951,0.051,20803.0,20802.0,2.15900669]
[1673709441204,0.26489454,20807.0,20802.0,2.15900669]
[1673709441456,0.26489454,20807.0,20803.0,0.98963569]
[1673709441716,0.26489454,20807.0,20804.0,2.72021569]
[1673709441977,0.26489454,20807.0,20805.0,0.91921369]
[1673709442226,0.26489454,20807.0,20806.0,0.80092]
[1673709442482,0.26889454,20807.0,20805.0,0.480644]
[1673709442729,0.26489454,20807.0,20805.0,0.480644]
[1673709442993,0.26489454,20807.0,20804.0,0.138]
[1673709442994,0.45962049,20807.0,20804.0,0.138]
[1673709443328,0.94023049,20807.0,20804.0,0.138]
[1673709443514,1.0837339,20807.0,20804.0,0.138]
[1673709443751,0.14350341,20806.0,20804.0,0.138]
[1673709444010,0.14350341,20806.0,20800.0,0.480764]
[1673709444257,0.14350341,20806.0,20799.0,1.200981]
[1673709444258,0.19072595,20805.0,20799.0,1.200981]
[1673709444534,0.19072595,20804.0,20798.0,0.00635913]
[1673709444780,0.19072595,20803.0,20798.0,0.00635913]
[1673709445012,0.76002815,20802.0,20798.0,0.00635913]
[1673709445271,0.19072595,20801.0,20800.0,0.127]
[1673709445525,0.489231,20802.0,20798.0,0.00635913]
[1673709445809,0.67995695,20802.0,20798.0,0.13335913]
[1673709447011,0.1294,20801.0,20798.0,0.13335913]
[1673709447255,0.961538,20800.0,20798.0,0.00635913]
[1673709447756,0.961538,20800.0,20798.0,0.00624557]
[1673709448009,0.961538,20800.0,20798.0,0.12224557]
[1673709448266,0.961538,20800.0,20798.0,0.00624557]
[1673709448497,0.965538,20800.0,20798.0,0.12224557]
[1673709448747,0.004,20800.0,20798.0,0.13566638]
[1673709449994,0.004,20800.0,20798.0,0.61647938]
[1673709450247,0.004,20800.0,20799.0,0.320359]
[1673709450483,0.004,20800.0,20799.0,1.581943]
[1673709451020,0.004,20800.0,20799.0,1.281943]
[1673709451329,1.2564,20805.0,20799.0,1.581943]
[1673709451573,0.002,20800.0,20799.0,1.303584]
[1673709451820,0.002,20800.0,20799.0,1.723943]
[1673709453105,0.19272595,20800.0,20799.0,0.362359]
[1673709453426,0.67149495,20800.0,20798.0,0.00624557]
[1673709453628,0.67149495,20800.0,20799.0,0.042]
[1673709453859,0.480769,20800.0,20799.0,0.042]
[1673709454101,0.480769,20800.0,20799.0,0.085]
[1673709454102,0.482769,20800.0,20799.0,0.085]
[1673709454341,0.480769,20800.0,20798.0,0.00624557]
[1673709454662,0.507769,20800.0,20798.0,0.00724557]
[1673709454902,0.480769,20800.0,20798.0,0.00624557]
[1673709455145,0.480769,20800.0,20799.0,0.007]
[1673709455146,0.72633691,20800.0,20799.0,0.007]
[1673709455626,1.88850932,20800.0,20799.0,0.007]
[1673709455885,1.70367768,20800.0,20799.0,0.007]
[1673709456138,0.81934032,20800.0,20798.0,0.00624557]
[1673709456383,0.00632525,20798.0,20797.0,0.01196258]
[1673709456659,1.45727025,20798.0,20797.0,0.01196258]
[1673709456901,0.48714025,20798.0,20797.0,0.01196258]
[1673709457906,0.5460505,20798.0,20797.0,0.01896258]
[1673709458399,0.8975379,20798.0,20797.0,0.01896258]
[1673709458682,1.42120626,20798.0,20797.0,0.01896258]
[1673709458910,1.42120626,20798.0,20791.0,0.00201828]
[1673709458911,0.1,20797.0,20791.0,0.00201828]
[1673709459173,3.89937031,20796.0,20791.0,0.00201828]
[1673709459465,0.19072595,20795.0,20791.0,0.00201828]
[1673709459765,1.73346195,20794.0,20791.0,0.00201828]
[1673709460057,0.19072595,20793.0,20791.0,0.00201828]
[1673709460320,1.442862,20792.0,20791.0,0.00201828]
[1673709461111,1.881762,20792.0,20791.0,0.00201828]
[1673709461369,1.881762,20792.0,20781.0,0.35821692]
[1673709461370,0.01242,20790.0,20781.0,0.35821692]
[1673709461614,0.01242,20790.0,20780.0,0.2872918]
[1673709461615,0.962124,20788.0,20780.0,0.1]
[1673709461866,0.19072595,20787.0,20779.0,0.49446121]
[1673709462119,0.19072595,20786.0,20780.0,0.481226]
[1673709462413,0.19072595,20785.0,20781.0,0.47720169]
[1673709462708,0.19072595,20785.0,20782.0,1.85992269]
[1673709462966,0.99946034,20791.0,20783.0,0.213003]
[1673709463229,0.013,20790.0,20784.0,0.481122]
[1673709463494,0.67171595,20791.0,20784.0,0.481122]
[1673709463792,0.013,20785.0,20784.0,0.481122]
[1673709464045,1.20418629,20791.0,20784.0,0.781122]
[1673709464287,1.20418629,20791.0,20784.0,0.481122]
[1673709464288,0.67171595,20791.0,20784.0,0.481122]
[1673709464545,0.68671595,20791.0,20785.0,0.4]
[1673709464799,0.20572595,20791.0,20785.0,0.881097]
[1673709465050,0.015,20791.0,20785.0,0.881097]
[1673709465323,0.20572595,20791.0,20785.0,0.881097]
[1673709465571,0.20572595,20791.0,20785.0,1.35829869]
[1673709465822,0.19072595,20790.0,20784.0,0.483123]
[1673709466088,0.67175095,20789.0,20783.0,0.481153]
[1673709466358,0.19072595,20788.0,20785.0,0.002]
[1673709466617,0.19072595,20788.0,20782.0,0.481182]
[1673709466852,0.19072595,20787.0,20785.0,0.002]
[1673709467099,0.481048,20788.0,20782.0,0.481182]
[1673709467353,0.19072595,20787.0,20783.0,0.002]
[1673709467626,0.19072595,20787.0,20782.0,0.481182]
[1673709467884,0.481048,20788.0,20782.0,0.483182]
[1673709467885,0.19072595,20786.0,20782.0,0.483182]
[1673709469147,0.19072595,20786.0,20782.0,0.481182]
[1673709469418,0.481075,20787.0,20782.0,0.481182]
[1673709469666,0.481075,20787.0,20782.0,0.483182]
[1673709469667,0.495075,20787.0,20782.0,0.483182]
[1673709469923,0.67180095,20787.0,20782.0,0.481182]
[1673709470203,0.19072595,20787.0,20782.0,0.962367]
[1673709470726,0.20572595,20787.0,20782.0,0.964367]
[1673709472489,0.68680295,20787.0,20782.0,0.964367]
[1673709474518,0.015,20787.0,20783.0,0.47720169]
[1673709474777,0.015,20787.0,20784.0,2.24096269]
[1673709475036,0.015,20787.0,20785.0,0.212946]
[1673709475267,0.015,20787.0,20786.0,1.763605]
[1673709475525,0.015,20787.0,20786.0,2.063605]
[1673709475787,0.015,20787.0,20786.0,2.54080669]
[1673709476283,1.196,20793.0,20786.0,2.54080669]
[1673709476547,1.196,20793.0,20787.0,0.612924]
[1673709476804,1.26737267,20795.0,20788.0,2.24057169]
[1673709476805,0.00797267,20795.0,20788.0,2.24057169]
[1673709477066,0.00797267,20795.0,20789.0,0.99010369]
[1673709477322,0.00797267,20795.0,20790.0,2.72137669]